fUSD/lending_fUSD_20250111
["ID","MTS","AMOUNT","RATE_DAILY","PERIOD"]
[348544030,1736611846578,-500.0,0.00010545,2]
[348544031,1736611846588,-500.0,0.00010545,2]
[348544032,1736611846597,-500.0,0.00010545,2]
[348544033,1736611846606,-500.0,0.00010545,2]
[348544034,1736611846615,-500.0,0.00010545,2]
[348544035,1736611846625,-500.0,0.00010545,2]
[348544036,1736611846634,-500.0,0.00010545,2]
[348544037,1736611846643,-1470.43,0.00010545,2]
[348544038,1736611846653,-1326.61,0.00010545,2]
[348544039,1736611846662,-500.0,0.00010545,2]
[348544040,1736611846671,-500.0,0.00010545,2]
[348544041,1736611846681,-500.0,0.00010545,2]
[348544042,1736611846690,-500.0,0.00010545,2]
[348544043,1736611846699,-500.0,0.00010545,2]
[348544044,1736611846708,-500.0,0.00010545,2]
[348544045,1736611846717,-829.8,0.00010545,2]
[348544046,1736611846727,-500.0,0.00010545,2]
[348544047,1736611846736,-500.0,0.00010546,2]
[348544048,1736611846745,-500.0,0.00010546,2]
[348544049,1736611846754,-500.0,0.00010546,2]
[348544050,1736611846763,-500.0,0.00010546,2]
[348544051,1736611846772,-500.0,0.00010546,2]
[348544052,1736611846782,-294.1,0.00010546,2]
[348544053,1736611846791,-423.31969594,0.00010546,2]
[348544054,1736611846799,-500.0,0.00010546,2]
[348544055,1736611846809,-500.0,0.00010546,2]
[348544056,1736611846818,-500.0,0.00010546,2]
[348544057,1736611846827,-187.94,0.00010546,2]
[348544058,1736611846836,-500.0,0.00010546,2]
[348544059,1736611846846,-500.0,0.00010546,2]
[348544060,1736611846855,-500.0,0.00010546,2]
[348544061,1736611846864,-500.0,0.00010546,2]
[348544062,1736611847048,-500.0,0.00010546,2]
[348544063,1736611847058,-500.0,0.00010546,2]
[348544064,1736611847068,-227.72,0.00010546,2]
[348544065,1736611847077,-581.1,0.00010546,2]
[348544066,1736611847086,-346.08,0.00010546,2]
[348544067,1736611847096,-451.8,0.00010546,2]
[348544068,1736611847105,-500.0,0.00010546,2]
[348544069,1736611847115,-500.0,0.00010546,2]
[348544070,1736611847124,-159.5,0.00010546,2]
[348544071,1736611847133,-500.0,0.00010546,2]
[348544072,1736611847143,-168.46,0.00010546,2]
[348544073,1736611847153,-500.0,0.00010546,2]
[348544074,1736611847163,-200.68,0.00010546,2]
[348544075,1736611847173,-2075.83,0.00010546,2]
[348544076,1736611847183,-1025.56,0.00010546,2]
[348544077,1736611847193,-1975.84,0.00010546,2]
[348544078,1736611847202,-2572.54,0.00010546,2]
[348544079,1736611847212,-1860.87,0.00010546,2]
[348544080,1736611847221,-1253.45,0.00010546,2]
[348544081,1736611847230,-1068.46,0.00010546,2]
[348544082,1736611847244,-1120.31,0.00010546,2]
[348544083,1736611847254,-3375.29,0.00010546,2]
[348544084,1736611847263,-2400.67,0.00010546,2]
[348544085,1736611847272,-730.66,0.00010546,2]
[348544086,1736611847282,-510.73,0.00010546,2]
[348544087,1736611847291,-534.85,0.00010546,2]
[348544088,1736611847301,-500.0,0.00010546,2]
[348544089,1736611847312,-685.17,0.00010546,2]
[348544090,1736611847322,-500.0,0.00010546,2]
[348544091,1736611847331,-1006.02,0.00010547,2]
[348544092,1736611847341,-3166.5811,0.0001072,2]
[348544093,1736611847350,-706.17,0.0001072,2]
[348544094,1736611847360,-352.63392716,0.0001072,2]
[348544095,1736611847370,-500.0,0.0001072,2]
[348544096,1736611847379,-45587.7619,0.00010721,2]
[348544097,1736611847389,-607.69,0.00010819,2]
[348544098,1736611847399,-500.0,0.00010819,2]
[348544099,1736611847409,-500.0,0.00010819,2]
[348544100,1736611847418,-500.0,0.00010819,2]
[348544101,1736611847427,-500.0,0.00010819,2]
[348544102,1736611847437,-500.0,0.00010819,2]
[348544103,1736611847446,-500.0,0.00010819,2]
[348544104,1736611847455,-500.0,0.00010819,2]
[348544105,1736611847464,-500.0,0.00010819,2]
[348544106,1736611847474,-500.0,0.00010819,2]
[348544107,1736611847483,-500.0,0.00010819,2]
[348544108,1736611847492,-500.0,0.00010819,2]
[348544109,1736611847501,-500.0,0.00010819,2]
[348544110,1736611847511,-500.0,0.00010819,2]
[348544111,1736611847520,-500.0,0.00010819,2]
[348544112,1736611847529,-500.0,0.00010819,2]
[348544113,1736611847539,-500.0,0.00010819,2]
[348544114,1736611847548,-500.0,0.00010819,2]
[348544115,1736611847558,-500.0,0.00010819,2]
[348544116,1736611847568,-500.0,0.00010819,2]
[348544117,1736611847577,-500.0,0.00010819,2]
[348544118,1736611847587,-500.0,0.00010819,2]
[348544119,1736611847596,-500.0,0.00010819,2]
[348544120,1736611847605,-1085.47,0.00010819,2]
[348544121,1736611847614,-500.0,0.00010819,2]
[348544122,1736611847623,-500.0,0.00010819,2]
[348544123,1736611847632,-500.0,0.00010819,2]
[348544124,1736611847642,-500.0,0.00010819,2]
[348544125,1736611847651,-500.0,0.00010819,2]
[348544126,1736611847661,-500.0,0.00010819,2]
[348544127,1736611847671,-500.0,0.00010819,2]
[348544128,1736611847680,-500.0,0.00010819,2]
[348544129,1736611847689,-500.0,0.00010819,2]
[348544130,1736611847698,-500.0,0.00010819,2]
[348544131,1736611847707,-251.18029461,0.00010819,2]
[348544132,1736611847716,-500.0,0.00010819,2]
[348544133,1736611847725,-500.0,0.00010819,2]
[348544134,1736611847735,-381.10321485,0.00010819,2]
[348544135,1736611847744,-500.0,0.00010819,2]
[348544136,1736611847753,-500.0,0.00010819,2]
[348544137,1736611847763,-500.0,0.00010819,2]
[348544138,1736611847772,-380.56,0.00010819,2]
[348544139,1736611847781,-330.96796467,0.00010819,2]
[348544140,1736611847791,-500.0,0.00010819,2]
[348544141,1736611847800,-500.0,0.00010819,2]
[348544142,1736611847809,-500.0,0.00010819,2]
[348544143,1736611847819,-500.0,0.00010819,2]
[348544144,1736611847828,-500.0,0.00010819,2]
[348544145,1736611847837,-500.0,0.00010819,2]
[348544146,1736611847847,-585.76,0.00010819,2]
[348544147,1736611847856,-500.0,0.00010819,2]
[348544148,1736611847868,-500.0,0.00010819,2]
[348544149,1736611847878,-521.42,0.00010819,2]
[348544150,1736611847887,-500.0,0.00010819,2]
[348544151,1736611847896,-500.0,0.00010819,2]
[348544152,1736611847906,-500.0,0.00010819,2]
[348544153,1736611847916,-500.0,0.00010819,2]
[348544154,1736611847925,-500.0,0.00010819,2]
[348544155,1736611847934,-500.0,0.00010819,2]
[348544156,1736611847944,-500.0,0.00010819,2]
[348544157,1736611847953,-500.0,0.00010819,2]
[348544158,1736611847963,-396.58979266,0.00010819,2]
[348544159,1736611847972,-500.0,0.00010819,2]
[348544160,1736611847981,-500.0,0.00010819,2]
[348544161,1736611847991,-500.0,0.00010819,2]
[348544162,1736611848000,-559.91,0.00010819,2]
[348544163,1736611848010,-500.0,0.00010819,2]
[348544164,1736611848019,-573.37791864,0.00010819,2]
[348544165,1736611848029,-686.43,0.00010819,2]
[348544166,1736611848039,-500.0,0.00010819,2]
[348544167,1736611848049,-557.227762,0.00010819,2]
[348544168,1736611848059,-374.04551357,0.00010819,2]
[348544169,1736611848073,-500.0,0.00010819,2]
[348544170,1736611848082,-500.0,0.00010819,2]
[348544171,1736611848093,-500.0,0.00010819,2]
[348544172,1736611848102,-500.0,0.00010819,2]
[348544173,1736611848112,-500.0,0.00010819,2]
[348544174,1736611848122,-500.0,0.00010819,2]
[348544175,1736611848131,-500.0,0.00010819,2]
[348544176,1736611848141,-500.0,0.00010819,2]
[348544177,1736611848150,-500.0,0.00010819,2]
[348544178,1736611848160,-500.0,0.00010819,2]
[348544179,1736611848170,-500.0,0.00010819,2]
[348544180,1736611848179,-500.0,0.00010819,2]
[348544181,1736611848188,-500.0,0.00010819,2]
[348544182,1736611848199,-500.0,0.00010819,2]
[348544183,1736611848208,-935.26,0.00010819,2]
[348544184,1736611848218,-484.8198,0.00010819,2]
[348544185,1736611848227,-500.0,0.00010819,2]
[348544186,1736611848239,-500.0,0.00010819,2]
[348544187,1736611848248,-283.14,0.00010819,2]
[348544188,1736611848258,-500.0,0.00010819,2]
[348544189,1736611848267,-500.0,0.00010819,2]
[348544190,1736611848278,-500.0,0.00010819,2]
[348544191,1736611848288,-500.0,0.00010819,2]
[348544192,1736611848297,-500.0,0.00010819,2]
[348544193,1736611848306,-500.0,0.00010819,2]
[348544194,1736611848319,-500.0,0.00010819,2]
[348544195,1736611848328,-500.0,0.00010819,2]
[348544196,1736611848337,-500.0,0.00010819,2]
[348544197,1736611848347,-500.0,0.00010819,2]
[348544198,1736611848356,-500.0,0.00010819,2]
[348544199,1736611848366,-500.0,0.00010819,2]
[348544200,1736611848375,-500.0,0.00010819,2]
[348544201,1736611848384,-1526.19,0.00010819,2]
[348544202,1736611848394,-500.0,0.00010819,2]
[348544203,1736611848403,-500.0,0.00010819,2]
[348544204,1736611848413,-500.0,0.00010819,2]
[348544205,1736611848423,-500.0,0.00010819,2]
[348544206,1736611848433,-210.18,0.00010819,2]
[348544207,1736611848443,-500.0,0.00010819,2]
[348544208,1736611848453,-500.0,0.00010819,2]
[348544209,1736611848462,-500.0,0.00010819,2]
[348544210,1736611848475,-227.94,0.00010819,2]
[348544211,1736611848484,-500.0,0.00010819,2]
[348544212,1736611848493,-742.24,0.00010819,2]
[348544213,1736611848503,-500.0,0.00010819,2]
[348544214,1736611848513,-500.0,0.00010819,2]
[348544215,1736611848522,-530.88,0.00010819,2]
[348544216,1736611848531,-500.0,0.00010819,2]
[348544217,1736611848541,-500.0,0.00010819,2]
[348544218,1736611848550,-500.0,0.00010819,2]
[348544219,1736611848559,-500.0,0.00010819,2]
[348544220,1736611848570,-503.84,0.00010819,2]
[348544221,1736611848579,-500.0,0.00010819,2]
[348544222,1736611848589,-585.44,0.00010819,2]
[348544223,1736611848598,-500.0,0.00010819,2]
[348544224,1736611848606,-500.0,0.00010819,2]
[348544225,1736611848616,-500.0,0.00010819,2]
[348544226,1736611848626,-500.0,0.00010819,2]
[348544227,1736611848635,-500.0,0.00010819,2]
[348544228,1736611848644,-502.88005493,0.00010819,2]
[348544229,1736611848653,-500.0,0.00010819,2]
[348544230,1736611848663,-500.0,0.00010819,2]
[348544231,1736611848672,-500.0,0.00010819,2]
[348544232,1736611848682,-249.98,0.00010819,2]
[348544233,1736611848691,-500.0,0.00010819,2]
[348544234,1736611848700,-500.0,0.00010819,2]
[348544235,1736611848710,-500.0,0.00010819,2]
[348544236,1736611848720,-213.16,0.00010819,2]
[348544237,1736611848730,-500.0,0.00010819,2]
[348544238,1736611848739,-500.0,0.00010819,2]
[348544239,1736611848748,-500.0,0.00010819,2]
[348544240,1736611848757,-500.0,0.00010819,2]
[348544241,1736611848767,-335.3,0.00010819,2]
[348544242,1736611848776,-500.0,0.00010819,2]
[348544243,1736611848785,-2051.78,0.00010819,2]
[348544244,1736611848794,-500.0,0.00010819,2]
[348544245,1736611848803,-500.0,0.00010819,2]
[348544246,1736611848812,-500.0,0.00010819,2]
[348544247,1736611848821,-500.0,0.00010819,2]
[348544248,1736611848830,-500.0,0.00010819,2]
[348544249,1736611848840,-500.0,0.00010819,2]
[348544250,1736611848849,-500.0,0.00010819,2]
[348544251,1736611848858,-585.14,0.00010819,2]
[348544252,1736611848868,-500.0,0.00010819,2]
[348544253,1736611848877,-500.0,0.00010819,2]
[348544254,1736611848887,-1542.46,0.00010819,2]
[348544255,1736611848896,-526.48,0.00010819,2]
[348544256,1736611848906,-500.0,0.00010819,2]
[348544257,1736611848915,-500.0,0.00010819,2]
[348544258,1736611848924,-500.0,0.00010819,2]
[348544259,1736611848934,-564.39,0.00010819,2]
[348544260,1736611848943,-500.0,0.00010819,2]
[348544261,1736611848953,-1202.6,0.00010819,2]
[348544262,1736611848962,-496.7891618,0.00010819,2]
[348544263,1736611848971,-500.0,0.00010819,2]
[348544264,1736611848980,-500.0,0.00010819,2]
[348544265,1736611848990,-164.72,0.00010819,2]
[348544266,1736611848999,-3823.51,0.00010819,2]
[348544267,1736611849008,-500.0,0.00010819,2]
[348544268,1736611849018,-500.0,0.00010819,2]
[348544269,1736611849027,-500.0,0.00010819,2]
[348544270,1736611849037,-500.0,0.00010819,2]
[348544271,1736611849047,-500.0,0.00010819,2]
[348544272,1736611849056,-500.0,0.00010819,2]
[348544273,1736611849066,-500.0,0.00010819,2]
[348544274,1736611849075,-304.85926483,0.00010819,2]
[348544275,1736611849084,-500.0,0.00010819,2]
[348544276,1736611849094,-500.0,0.00010819,2]
[348544277,1736611849103,-500.0,0.00010819,2]
[348544278,1736611849112,-500.0,0.00010819,2]
[348544279,1736611849122,-500.0,0.00010819,2]
[348544280,1736611849131,-1082.25,0.00010819,2]
[348544281,1736611849141,-500.0,0.00010819,2]
[348544282,1736611849150,-500.0,0.00010819,2]
[348544283,1736611849159,-500.0,0.00010819,2]
[348544284,1736611849168,-500.0,0.00010819,2]
[348544285,1736611849178,-500.0,0.00010819,2]
[348544286,1736611849187,-524.81,0.00010819,2]
[348544287,1736611849196,-500.0,0.00010819,2]
[348544288,1736611849206,-2517.63,0.00010819,2]
[348544289,1736611849215,-500.0,0.00010819,2]
[348544290,1736611849225,-533.58,0.00010819,2]
[348544291,1736611849238,-500.0,0.00010819,2]
[348544292,1736611849248,-510.7,0.00010819,2]
[348544293,1736611849257,-584.78,0.00010819,2]
[348544294,1736611849266,-2028.25,0.00010819,2]
[348544295,1736611849275,-500.0,0.00010819,2]
[348544296,1736611849286,-500.0,0.00010819,2]
[348544297,1736611849296,-500.0,0.00010819,2]
[348544298,1736611849306,-500.0,0.00010819,2]
[348544299,1736611849316,-1281.1,0.00010819,2]
[348544300,1736611849325,-500.0,0.00010819,2]
[348544301,1736611849335,-2382.25,0.00010819,2]
[348544302,1736611849344,-500.0,0.00010819,2]
[348544303,1736611849354,-500.0,0.00010819,2]
[348544304,1736611849420,-500.0,0.00010819,2]
[348544305,1736611849431,-2782.4,0.00010819,2]
[348544306,1736611849440,-500.0,0.00010819,2]
[348544307,1736611849449,-500.0,0.00010819,2]
[348544308,1736611849459,-500.0,0.00010819,2]
[348544309,1736611849468,-663.64,0.00010819,2]
[348544310,1736611849477,-500.0,0.00010819,2]
[348544311,1736611849486,-820.41,0.00010819,2]
[348544312,1736611849495,-500.0,0.00010819,2]
[348544313,1736611849505,-500.0,0.00010819,2]
[348544314,1736611849514,-500.0,0.00010819,2]
[348544315,1736611849524,-891.16,0.00010819,2]
[348544316,1736611849533,-500.0,0.00010819,2]
[348544317,1736611849543,-544.78,0.00010819,2]
[348544318,1736611849551,-500.0,0.00010819,2]
[348544319,1736611849561,-1836.81,0.00010819,2]
[348544320,1736611849571,-712.5,0.00010819,2]
[348544321,1736611849580,-1289.01,0.00010819,2]
[348544322,1736611849590,-500.0,0.00010819,2]
[348544323,1736611849599,-500.0,0.00010819,2]
[348544324,1736611849608,-771.63,0.00010819,2]
[348544325,1736611849618,-500.0,0.00010819,2]
[348544326,1736611849627,-500.0,0.00010819,2]
[348544327,1736611849636,-656.33,0.00010819,2]
[348544328,1736611849646,-630.96,0.00010819,2]
[348544329,1736611849655,-500.0,0.00010819,2]
[348544330,1736611849664,-500.0,0.00010819,2]
[348544331,1736611849674,-589.73,0.00010819,2]
[348544332,1736611849683,-500.0,0.00010819,2]
[348544333,1736611849692,-811.2,0.00010819,2]
[348544334,1736611849701,-500.0,0.00010819,2]
[348544335,1736611849710,-500.0,0.00010819,2]
[348544336,1736611849719,-500.0,0.00010819,2]
[348544337,1736611849728,-500.0,0.00010819,2]
[348544338,1736611849738,-500.0,0.00010819,2]
[348544339,1736611849747,-1470.43,0.00010819,2]
[348544340,1736611849756,-1326.61,0.00010819,2]
[348544341,1736611849765,-500.0,0.00010819,2]
[348544342,1736611849775,-500.0,0.00010819,2]
[348544343,1736611849785,-500.0,0.00010819,2]
[348544344,1736611849795,-829.8,0.00010819,2]
[348544345,1736611849804,-500.0,0.0001082,2]
[348544346,1736611849815,-500.0,0.0001082,2]
[348544347,1736611849824,-500.0,0.0001082,2]
[348544348,1736611849833,-500.0,0.0001082,2]
[348544349,1736611849843,-500.0,0.0001082,2]
[348544350,1736611849852,-500.0,0.0001082,2]
[348544351,1736611849861,-553.29350455,0.0001082,2]
[348544352,1736611849871,-637.26,0.0001082,2]
[348544353,1736611849882,-556.62,0.0001082,2]
[348544354,1736611849891,-500.0,0.0001082,2]
[348544355,1736611849900,-581.1,0.0001082,2]
[348544356,1736611849911,-500.0,0.0001082,2]
[348544357,1736611849920,-500.0,0.0001082,2]
[348544358,1736611849929,-500.0,0.0001082,2]
[348544359,1736611849940,-2075.83,0.0001082,2]
[348544360,1736611849949,-1025.56,0.0001082,2]
[348544361,1736611849959,-1975.84,0.0001082,2]
[348544362,1736611849967,-2572.54,0.0001082,2]
[348544363,1736611849977,-1860.87,0.0001082,2]
[348544364,1736611849986,-1253.45,0.0001082,2]
[348544365,1736611849995,-1068.46,0.0001082,2]
[348544366,1736611850005,-1120.31,0.0001082,2]
[348544367,1736611850015,-3375.29,0.0001082,2]
[348544368,1736611850025,-2400.67,0.0001082,2]
[348544369,1736611850033,-730.66,0.0001082,2]
[348544370,1736611850042,-510.73,0.0001082,2]
[348544371,1736611850051,-534.85,0.0001082,2]
[348544372,1736611850060,-500.0,0.0001082,2]
[348544373,1736611850070,-685.17,0.0001082,2]
[348544374,1736611850079,-580.64,0.0001082,2]
[348544375,1736611850089,-14483.9512485,0.00010888,2]
[348544376,1736611850098,-465.52854266,0.000109,2]
[348544377,1736611850107,-500.0,0.00010958,2]
[348544378,1736611850116,-500.0,0.00010958,2]
[348544379,1736611850125,-500.0,0.00010958,2]
[348544380,1736611850134,-150.0,0.00010959,2]
[348544381,1736611850144,-8750.8032481,0.00010968,2]
[348544382,1736611850154,-465.52854237,0.00010969,2]
[348544383,1736611850164,-1750.16064962,0.00010969,2]
[348544384,1736611850173,-988.77108269,0.00010969,2]
[348544385,1736611850182,-637.55536695,0.0001097,2]
[348544386,1736611850191,-839.66638374,0.0001097,2]
[348544387,1736611850201,-302.1110168,0.00010971,2]
[348544388,1736611850210,-5052.94130995,0.00010973,2]
[348544389,1736611850220,-494.38554135,0.00010973,2]
[348544390,1736611850230,-1054.76133167,0.00010974,2]
[348544391,1736611850243,-302.1110168,0.00010974,2]
[348544392,1736611850253,-839.66638374,0.00010974,2]
[348544393,1736611850263,-8750.8032481,0.00010974,2]
[348544394,1736611850272,-2109.52266334,0.00010974,2]
[348544395,1736611850281,-2109.52266334,0.00010976,2]
[348544396,1736611850291,-637.55536695,0.00010977,2]
[348544397,1736611850301,-200.0,0.00010977,2]
[348544398,1736611850312,-988.77108269,0.00010977,2]
[348544399,1736611850322,-8750.8032481,0.00010977,2]
[348544400,1736611850331,-494.38554135,0.00010978,2]
[348544401,1736611850340,-8750.8032481,0.00010978,2]
[348544402,1736611850350,-637.55536695,0.00010979,2]
[348544403,1736611850359,-839.66638374,0.00010979,2]
[348544404,1736611850369,-8750.8032481,0.00010979,2]
[348544405,1736611850378,-1750.16064962,0.0001098,2]
[348544406,1736611850387,-637.55536695,0.0001098,2]
[348544407,1736611850397,-1054.76133167,0.0001098,2]
[348544408,1736611850407,-200.0,0.0001098,2]
[348544409,1736611850417,-637.55536695,0.00010981,2]
[348544410,1736611850426,-2109.52266334,0.00010981,2]
[348544411,1736611850435,-1750.16064962,0.00010981,2]
[348544412,1736611850444,-2109.52266334,0.00010982,2]
[348544413,1736611850454,-1054.76133167,0.00010983,2]
[348544414,1736611850463,-5052.94130995,0.00010985,2]
[348544415,1736611850472,-5052.94130995,0.00010985,2]
[348544416,1736611850481,-988.77108269,0.00010985,2]
[348544417,1736611850491,-494.38554135,0.00010985,2]
[348544418,1736611850501,-5052.94130995,0.00010986,2]
[348544419,1736611850511,-1054.76133167,0.00010986,2]
[348544420,1736611850520,-500.0,0.00010986,2]
[348544421,1736611850530,-1054.76133167,0.00010986,2]
[348544422,1736611850539,-2109.52266334,0.00010987,2]
[348544423,1736611850549,-1750.16064962,0.00010987,2]
[348544424,1736611850558,-302.1110168,0.00010988,2]
[348544425,1736611850568,-200.0,0.00010988,2]
[348544426,1736611850578,-839.66638374,0.00010988,2]
[348544427,1736611850588,-494.38554135,0.00010989,2]
[348544428,1736611850598,-5052.94130995,0.00010989,2]
[348544429,1736611850609,-988.77108269,0.00010991,2]
[348544430,1736611850618,-302.1110168,0.00010991,2]
[348544431,1736611850628,-637.55536695,0.00010991,2]
[348544432,1736611850638,-839.66638374,0.00010992,2]
[348544433,1736611850647,-2109.52266334,0.00010993,2]
[348544434,1736611850656,-988.77108269,0.00010994,2]
[348544435,1736611850665,-1054.76133167,0.00010994,2]
[348544436,1736611850675,-8750.8032481,0.00010994,2]
[348544437,1736611850684,-706.17,0.00010994,2]
[348544438,1736611850694,-500.0,0.00010994,2]
[348544439,1736611850704,-302.1110168,0.00010995,2]
[348544440,1736611850713,-494.38554135,0.00010995,2]
[348544441,1736611850722,-1750.16064962,0.00010996,2]
[348544442,1736611850732,-302.1110168,0.00010996,2]
[348544443,1736611850742,-839.66638374,0.00010997,2]
[348544444,1736611850752,-1750.16064962,0.00010998,2]
[348544445,1736611850762,-494.38554135,0.00010999,2]
[348544446,1736611850774,-988.77108269,0.00010999,2]
[348544447,1736611850784,-5052.94130995,0.00010999,2]
[348544448,1736611850794,-465.52854237,0.00011038,2]
[348544449,1736611850803,-150.8,0.00011047,2]
[348544450,1736611850813,-578.85,0.00011087,2]
[348544451,1736611850823,-226.63,0.00011087,2]
[348544452,1736611850833,-500.0,0.00011093,2]
[348544453,1736611850842,-500.0,0.00011093,2]
[348544454,1736611850852,-500.0,0.00011093,2]
[348544455,1736611850862,-500.0,0.00011093,2]
[348544456,1736611850873,-500.0,0.00011093,2]
[348544457,1736611850883,-500.0,0.00011093,2]
[348544458,1736611850892,-500.0,0.00011093,2]
[348544459,1736611850901,-500.0,0.00011093,2]
[348544460,1736611850911,-500.0,0.00011093,2]
[348544461,1736611850920,-1085.47,0.00011093,2]
[348544462,1736611850930,-500.0,0.00011093,2]
[348544463,1736611850938,-500.0,0.00011093,2]
[348544464,1736611850948,-500.0,0.00011093,2]
[348544465,1736611850959,-585.76,0.00011093,2]
[348544466,1736611850968,-500.0,0.00011093,2]
[348544467,1736611850980,-547.02,0.00011093,2]
[348544468,1736611850990,-521.42,0.00011093,2]
[348544469,1736611850999,-500.0,0.00011093,2]
[348544470,1736611851010,-500.0,0.00011093,2]
[348544471,1736611851019,-168.12,0.00011093,2]
[348544472,1736611851028,-686.43,0.00011093,2]
[348544473,1736611851038,-557.227762,0.00011093,2]
[348544474,1736611851047,-403.34,0.00011093,2]
[348544475,1736611851056,-500.0,0.00011093,2]
[348544476,1736611851066,-500.0,0.00011093,2]
[348544477,1736611851075,-500.0,0.00011093,2]
[348544478,1736611851084,-484.8198,0.00011093,2]
[348544479,1736611851093,-935.26,0.00011093,2]
[348544480,1736611851102,-209.7,0.00011093,2]
[348544481,1736611851112,-500.0,0.00011093,2]
[348544482,1736611851121,-500.0,0.00011093,2]
[348544483,1736611851130,-500.0,0.00011093,2]
[348544484,1736611851139,-1526.19,0.00011093,2]
[348544485,1736611851148,-500.0,0.00011093,2]
[348544486,1736611851157,-500.0,0.00011093,2]
[348544487,1736611851166,-500.0,0.00011093,2]
[348544488,1736611851175,-500.0,0.00011093,2]
[348544489,1736611851185,-500.0,0.00011093,2]
[348544490,1736611851194,-742.24,0.00011093,2]
[348544491,1736611851204,-500.0,0.00011093,2]
[348544492,1736611851214,-239.06,0.00011093,2]
[348544493,1736611851224,-500.0,0.00011093,2]
[348544494,1736611851234,-503.84,0.00011093,2]
[348544495,1736611851245,-585.44,0.00011093,2]
[348544496,1736611851255,-500.0,0.00011093,2]
[348544497,1736611851265,-500.0,0.00011093,2]
[348544498,1736611851275,-500.0,0.00011093,2]
[348544499,1736611851285,-500.0,0.00011093,2]
[348544500,1736611851295,-2051.78,0.00011093,2]
[348544501,1736611851304,-500.0,0.00011093,2]
[348544502,1736611851315,-500.0,0.00011093,2]
[348544503,1736611851325,-1542.46,0.00011093,2]
[348544504,1736611851335,-500.0,0.00011093,2]
[348544505,1736611851344,-564.39,0.00011093,2]
[348544506,1736611851354,-1202.6,0.00011093,2]
[348544507,1736611851364,-500.0,0.00011093,2]
[348544508,1736611851374,-3823.51,0.00011093,2]
[348544509,1736611851383,-500.0,0.00011093,2]
[348544510,1736611851392,-500.0,0.00011093,2]
[348544511,1736611851402,-500.0,0.00011093,2]
[348544512,1736611851412,-1082.25,0.00011093,2]
[348544513,1736611851421,-170.01,0.00011093,2]
[348544514,1736611851431,-500.0,0.00011093,2]
[348544515,1736611851440,-500.0,0.00011093,2]
[348544516,1736611851449,-524.81,0.00011093,2]
[348544517,1736611851459,-2517.63,0.00011093,2]
[348544518,1736611851468,-533.58,0.00011093,2]
[348544519,1736611851478,-500.0,0.00011093,2]
[348544520,1736611851487,-2028.25,0.00011093,2]
[348544521,1736611851497,-500.0,0.00011093,2]
[348544522,1736611851507,-458.78,0.00011093,2]
[348544523,1736611851516,-1281.1,0.00011093,2]
[348544524,1736611851526,-2382.25,0.00011093,2]
[348544525,1736611851536,-2782.4,0.00011093,2]
[348544526,1736611851546,-340.14,0.00011093,2]
[348544527,1736611851556,-198.76,0.00011093,2]
[348544528,1736611851566,-663.64,0.00011093,2]
[348544529,1736611851576,-500.0,0.00011093,2]